fUST/lending_fUST_20250731
["ID","MTS","AMOUNT","RATE_DAILY","PERIOD"]
[376382345,1753956655373,-729.91,0.00022191,2]
[376382346,1753956655385,-460.0,0.00022191,2]
[376382347,1753956655397,-766.15,0.00022191,2]
[376382348,1753956655408,-340.56753612,0.00022191,2]
[376382349,1753956655421,-1798.72,0.00022191,2]
[376382350,1753956655433,-460.0,0.00022191,2]
[376382351,1753956655445,-460.0,0.00022191,2]
[376382352,1753956655457,-620.24,0.00022191,2]
[376382353,1753956655467,-460.0,0.00022191,2]
[376382354,1753956655475,-627.66,0.00022191,2]
[376382355,1753956655484,-745.28,0.00022191,2]
[376382356,1753956655494,-460.0,0.00022191,2]
[376382357,1753956655503,-583.67,0.00022191,2]
[376382358,1753956655512,-1465.88,0.00022191,2]
[376382359,1753956655521,-958.59,0.00022191,2]
[376382360,1753956655531,-585.31,0.00022191,2]
[376382361,1753956655540,-582.92,0.00022191,2]
[376382362,1753956655549,-460.0,0.00022191,2]
[376382363,1753956655559,-809.34,0.00022191,2]
[376382364,1753956655568,-460.0,0.00022191,2]
[376382365,1753956655577,-2923.18878473,0.00022314,7]
[376382366,1753956655586,-505.14148021,0.00022343,2]
[376382367,1753956655595,-6278.42352558,0.00022416,2]
[376382368,1753956655604,-1759.3336162,0.00022416,2]
[376382369,1753956655614,-151.0,0.00022451,4]
[376382370,1753956655623,-405.883959,0.00022465,7]
[376382371,1753956655633,-1000.0,0.00022465,2]
[376382372,1753956655642,-1108.9,0.00022465,2]
[376382373,1753956655651,-405.883959,0.00022465,7]
[376382374,1753956655660,-460.0,0.00022465,2]
[376382375,1753956655670,-460.0,0.00022465,2]
[376382376,1753956655679,-615.44,0.00022465,2]
[376382377,1753956655689,-460.0,0.00022465,2]
[376382378,1753956655698,-729.91,0.00022465,2]
[376382379,1753956655707,-528.24,0.00022465,2]
[376382380,1753956655716,-766.15,0.00022465,2]
[376382381,1753956655725,-1798.72,0.00022465,2]
[376382382,1753956655734,-536.95,0.00022465,2]
[376382383,1753956655743,-460.0,0.00022465,2]
[376382384,1753956655752,-620.24,0.00022465,2]
[376382385,1753956655761,-460.0,0.00022465,2]
[376382386,1753956655989,-627.66,0.00022465,2]
[376382387,1753956656004,-745.28,0.00022465,2]
[376382388,1753956656014,-460.0,0.00022465,2]
[376382389,1753956656024,-583.67,0.00022465,2]
[376382390,1753956656034,-1465.88,0.00022465,2]
[376382391,1753956656043,-958.59,0.00022465,2]
[376382392,1753956656053,-585.31,0.00022465,2]
[376382393,1753956656062,-582.92,0.00022465,2]
[376382394,1753956656072,-460.0,0.00022465,2]
[376382395,1753956656082,-809.34,0.00022465,2]
[376382396,1753956656092,-460.0,0.00022465,2]
[376382397,1753956656102,-411.0,0.00022546,2]
[376382398,1753956656111,-300.0,0.00022546,2]
[376382399,1753956656120,-587.0,0.00022546,2]
[376382400,1753956656130,-1256.0,0.00022548,2]
[376382401,1753956656139,-151.0,0.00022555,7]
[376382402,1753956656149,-2923.18878473,0.00022555,7]
[376382403,1753956656158,-635.0,0.00022565,2]
[376382404,1753956656167,-970.0,0.00022565,2]
[376382405,1753956656176,-151.0,0.000226,9]
[376382406,1753956656186,-889.55,0.000226,2]
[376382407,1753956656195,-460.0,0.00022739,2]
[376382408,1753956656204,-460.0,0.00022739,2]
[376382409,1753956656214,-615.44,0.00022739,2]
[376382410,1753956656223,-312.59,0.00022739,2]
[376382411,1753956656232,-729.91,0.00022739,2]
[376382412,1753956656241,-766.15,0.00022739,2]
[376382413,1753956656250,-1798.72,0.00022739,2]
[376382414,1753956656259,-460.0,0.00022739,2]
[376382415,1753956656268,-620.24,0.00022739,2]
[376382416,1753956656277,-460.0,0.00022739,2]
[376382417,1753956656286,-627.66,0.00022739,2]
[376382418,1753956656296,-745.28,0.00022739,2]
[376382419,1753956656305,-460.0,0.00022739,2]
[376382420,1753956656317,-583.67,0.00022739,2]
[376382421,1753956656327,-1465.88,0.00022739,2]
[376382422,1753956656339,-958.59,0.00022739,2]
[376382423,1753956656353,-585.31,0.00022739,2]
[376382424,1753956656362,-582.92,0.00022739,2]
[376382425,1753956656371,-534.73633369,0.00022739,2]
[376382426,1753956656381,-809.34,0.00022739,2]
[376382427,1753956656390,-332.61,0.00022739,2]
[376382428,1753956656400,-2351.0,0.00022766,2]
[376382429,1753956656410,-2923.18878473,0.00022797,7]
[376382430,1753956656420,-2146.0,0.00022843,2]
[376382431,1753956656429,-151.0,0.00022915,5]
[376382432,1753956656438,-216.1031716,0.00023,3]
[376382433,1753956656447,-160.0,0.00023,2]
[376382434,1753956656456,-160.0,0.00023,3]
[376382435,1753956656465,-332.53310912,0.00023,2]
[376382436,1753956656474,-460.0,0.00023013,2]
[376382437,1753956656484,-251.1,0.00023013,2]
[376382438,1753956656493,-615.44,0.00023013,2]
[376382439,1753956656502,-729.91,0.00023013,2]
[376382440,1753956656511,-766.15,0.00023013,2]
[376382441,1753956656520,-1798.72,0.00023013,2]
[376382442,1753956656529,-460.0,0.00023013,2]
[376382443,1753956656538,-620.24,0.00023013,2]
[376382444,1753956656550,-460.0,0.00023013,2]
[376382445,1753956656562,-627.66,0.00023013,2]
[376382446,1753956656572,-745.28,0.00023013,2]
[376382447,1753956656581,-460.0,0.00023013,2]
[376382448,1753956656590,-583.67,0.00023013,2]
[376382449,1753956656599,-1465.88,0.00023013,2]
[376382450,1753956656609,-958.59,0.00023013,2]
[376382451,1753956656618,-585.31,0.00023013,2]
[376382452,1753956656628,-582.92,0.00023013,2]
[376382453,1753956656637,-809.34,0.00023013,2]
[376382454,1753956656646,-2923.18878473,0.00023038,8]
[376382455,1753956656655,-151.0,0.000232,8]
[376382456,1753956656665,-642.16700293,0.00023232,2]
[376382457,1753956656674,-2923.18878473,0.00023279,8]
[376382458,1753956656683,-500.0,0.00023287,2]
[376382459,1753956656692,-233.75,0.00023287,2]
[376382460,1753956656701,-615.44,0.00023287,2]
[376382461,1753956656711,-729.91,0.00023287,2]
[376382462,1753956656720,-766.15,0.00023287,2]
[376382463,1753956656729,-1798.72,0.00023287,2]
[376382464,1753956656738,-460.0,0.00023287,2]
[376382465,1753956656748,-620.24,0.00023287,2]
[376382466,1753956656757,-460.0,0.00023287,2]
[376382467,1753956656766,-627.66,0.00023287,2]
[376382468,1753956656775,-745.28,0.00023287,2]
[376382469,1753956656784,-460.0,0.00023287,2]
[376382470,1753956656793,-583.67,0.00023287,2]
[376382471,1753956656802,-1465.88,0.00023287,2]
[376382472,1753956656813,-958.59,0.00023287,2]
[376382473,1753956656823,-585.31,0.00023287,2]
[376382474,1753956656832,-582.92,0.00023287,2]
[376382475,1753956656842,-809.34,0.00023287,2]
[376382476,1753956656851,-200.0,0.00023365,15]
[376382477,1753956656860,-200.0,0.00023365,15]
[376382478,1753956656870,-200.0,0.00023365,15]
[376382479,1753956656880,-200.0,0.00023365,15]
[376382480,1753956656889,-200.0,0.00023365,15]
[376382481,1753956656899,-200.0,0.00023365,15]
[376382482,1753956656908,-366.0,0.00023365,15]
[376382483,1753956656917,-151.0,0.00023379,5]
[376382484,1753956656928,-2264.11,0.000234,7]
[376382485,1753956656938,-12623.12,0.000235,7]
[376382486,1753956656947,-1298.18,0.000235,7]
[376382487,1753956656956,-39544.53,0.000235,2]
[376382488,1753956656967,-151.0,0.000235,7]
[376382489,1753956656978,-151.0,0.000235,7]
[376382490,1753956656989,-2923.18878473,0.00023521,9]
[376382491,1753956656998,-151.0,0.00023561,7]
[376382492,1753956657008,-615.44,0.00023561,2]
[376382493,1753956657017,-729.91,0.00023561,2]
[376382494,1753956657027,-766.15,0.00023561,2]
[376382495,1753956657036,-1798.72,0.00023561,2]
[376382496,1753956657045,-460.0,0.00023561,2]
[376382497,1753956657055,-620.24,0.00023561,2]
[376382498,1753956657066,-460.0,0.00023561,2]
[376382499,1753956657076,-627.66,0.00023561,2]
[376382500,1753956657085,-745.28,0.00023561,2]
[376382501,1753956657095,-460.0,0.00023561,2]
[376382502,1753956657104,-583.67,0.00023561,2]
[376382503,1753956657113,-1465.88,0.00023561,2]
[376382504,1753956657123,-958.59,0.00023561,2]
[376382505,1753956657132,-585.31,0.00023561,2]
[376382506,1753956657142,-582.92,0.00023561,2]
[376382507,1753956657152,-809.34,0.00023561,2]
[376382508,1753956657162,-151.0,0.000237,9]
[376382509,1753956657171,-514.92,0.00023752,7]
[376382510,1753956657180,-522.13,0.00023754,7]
[376382511,1753956657190,-2923.18878473,0.00023762,9]
[376382512,1753956657200,-151.0,0.000238,7]
[376382513,1753956657211,-151.0,0.000238,7]
[376382514,1753956657220,-151.0,0.000238,7]
[376382515,1753956657231,-151.0,0.000238,7]
[376382516,1753956657242,-615.44,0.00023835,2]
[376382517,1753956657253,-729.91,0.00023835,2]
[376382518,1753956657262,-766.15,0.00023835,2]
[376382519,1753956657271,-1798.72,0.00023835,2]
[376382520,1753956657281,-460.0,0.00023835,2]
[376382521,1753956657292,-620.24,0.00023835,2]
[376382522,1753956657302,-460.0,0.00023835,2]
[376382523,1753956657311,-627.66,0.00023835,2]
[376382524,1753956657321,-745.28,0.00023835,2]
[376382525,1753956657331,-460.0,0.00023835,2]
[376382526,1753956657345,-583.67,0.00023835,2]
[376382527,1753956657354,-1465.88,0.00023835,2]
[376382528,1753956657365,-958.59,0.00023835,2]
[376382529,1753956657375,-585.31,0.00023835,2]
[376382530,1753956657385,-582.92,0.00023835,2]
[376382531,1753956657394,-809.34,0.00023835,2]
[376382532,1753956657403,-151.0,0.00023842,5]
[376382533,1753956657413,-514.92,0.00023852,7]
[376382534,1753956657422,-168.0,0.00023877,2]
[376382535,1753956657431,-168.0,0.00023932,2]
[376382536,1753956657440,-514.92,0.00023952,7]
[376382537,1753956657449,-2391.013,0.00024,2]
[376382538,1753956657457,-160.0,0.00024,7]
[376382539,1753956657467,-526.848153,0.00024,7]
[376382540,1753956657476,-2923.18878473,0.00024003,10]
[376382541,1753956657485,-514.92,0.00024052,7]
[376382542,1753956657495,-450.09079762,0.00024079,2]
[376382543,1753956657504,-500.0,0.00024092,2]
[376382544,1753956657514,-160.0,0.000241,7]
[376382545,1753956657523,-405.883959,0.00024109,7]
[376382546,1753956657532,-405.883959,0.00024109,7]
[376382547,1753956657541,-615.44,0.00024109,2]
[376382548,1753956657550,-729.91,0.00024109,2]
[376382549,1753956657559,-766.15,0.00024109,2]
[376382550,1753956657569,-1798.72,0.00024109,2]
[376382551,1753956657578,-460.0,0.00024109,2]
[376382552,1753956657587,-620.24,0.00024109,2]
[376382553,1753956657597,-444.73,0.00024109,2]
[376382554,1753956657606,-627.66,0.00024109,2]
[376382555,1753956657615,-745.28,0.00024109,2]
[376382556,1753956657624,-460.0,0.00024109,2]
[376382557,1753956657633,-583.67,0.00024109,2]
[376382558,1753956657642,-1465.88,0.00024109,2]
[376382559,1753956657652,-958.59,0.00024109,2]
[376382560,1753956657661,-585.31,0.00024109,2]
[376382561,1753956657671,-582.92,0.00024109,2]
[376382562,1753956657680,-809.34,0.00024109,2]
[376382563,1753956657689,-500.0,0.00024119,2]
[376382564,1753956657699,-500.0,0.00024152,2]
[376382565,1753956657708,-514.92,0.00024152,7]
[376382566,1753956657726,-2923.18878473,0.00024245,10]
[376382567,1753956657736,-168.0,0.0002425,2]
[376382568,1753956657746,-500.0,0.00024252,2]
[376382569,1753956657756,-514.92,0.00024252,7]
[376382570,1753956657765,-150.0,0.00024269,30]
[376382571,1753956657774,-168.0,0.00024281,2]
[376382572,1753956657784,-642.16700293,0.00024296,2]
[376382573,1753956657795,-151.0,0.000243,9]
[376382574,1753956657804,-151.0,0.00024306,6]
[376382575,1753956657813,-514.92,0.00024352,7]
[376382576,1753956657823,-615.44,0.00024383,2]
[376382577,1753956657833,-729.91,0.00024383,2]
[376382578,1753956657843,-766.15,0.00024383,2]
[376382579,1753956657852,-1798.72,0.00024383,2]
[376382580,1753956657862,-472.96393168,0.00024383,2]
[376382581,1753956657872,-620.24,0.00024383,2]
[376382582,1753956657882,-627.66,0.00024383,2]
[376382583,1753956657892,-745.28,0.00024383,2]
[376382584,1753956657902,-460.0,0.00024383,2]
[376382585,1753956657912,-583.67,0.00024383,2]
[376382586,1753956657922,-1465.88,0.00024383,2]
[376382587,1753956657933,-958.59,0.00024383,2]
[376382588,1753956657943,-585.31,0.00024383,2]
[376382589,1753956657953,-582.92,0.00024383,2]
[376382590,1753956657964,-809.34,0.00024383,2]
[376382591,1753956657973,-500.0,0.00024387,2]
[376382592,1753956657984,-168.0,0.00024437,2]
[376382593,1753956657994,-168.0,0.00024438,2]
[376382594,1753956658003,-160.0,0.0002445,5]
[376382595,1753956658013,-514.92,0.00024452,7]
[376382596,1753956658024,-500.0,0.00024457,2]
[376382597,1753956658033,-500.0,0.00024463,2]
[376382598,1753956658043,-168.0,0.00024475,2]
[376382599,1753956658053,-2923.18878473,0.00024486,11]
[376382600,1753956658063,-500.0,0.00024492,2]
[376382601,1753956658072,-500.0,0.00024515,2]
[376382602,1753956658082,-514.92,0.00024552,7]
[376382603,1753956658092,-168.0,0.00024558,2]
[376382604,1753956658102,-823.0,0.00024576,2]
[376382605,1753956658112,-2264.11,0.000246,7]
[376382606,1753956658121,-168.0,0.00024601,2]
[376382607,1753956658131,-168.0,0.00024632,2]
[376382608,1753956658140,-151.01077,0.0002465,8]
[376382609,1753956658150,-514.92,0.00024652,7]
[376382610,1753956658159,-460.0,0.00024657,2]
[376382611,1753956658168,-615.44,0.00024657,2]
[376382612,1753956658177,-729.91,0.00024657,2]
[376382613,1753956658187,-766.15,0.00024657,2]
[376382614,1753956658196,-1798.72,0.00024657,2]
[376382615,1753956658205,-620.24,0.00024657,2]
[376382616,1753956658214,-627.66,0.00024657,2]
[376382617,1753956658224,-745.28,0.00024657,2]
[376382618,1753956658233,-460.0,0.00024657,2]
[376382619,1753956658241,-583.67,0.00024657,2]
[376382620,1753956658250,-694.3180698,0.00024657,2]
[376382621,1753956658273,-883.33333,0.00019077,2]
[376382622,1753956658282,-771.5619302,0.00024657,2]
[376382623,1753956658291,-806.84587523,0.00024657,2]
[376382624,1753956658312,-883.33333,0.00019077,2]
[376382625,1753956658321,-151.74412477,0.00024657,2]
[376382626,1753956658330,-300.0,0.00024657,4]
[376382627,1753956658342,-206.05416614,0.00024657,4]
[376382629,1753956777716,-225.15798163,0.00018878,2]
[376382630,1753956783485,-15.65464453,0.00018878,2]
[376382631,1753956843074,2422.56338924,0.00026,120]
[376382633,1753956983498,-185.82828759,0.00018876,2]
[376382634,1753956985804,-53.02471978,0.00018876,2]
[376382637,1753957258317,-208.99638144,0.00018876,2]
[376382638,1753957258344,-69.51104137,0.000189,2]
[376382639,1753957262500,-201.01610443,0.000189,2]
[376382640,1753957264257,-344.61252723,0.000189,2]
[376382641,1753957267916,-155.37189955,0.000189,2]
[376382642,1753957269959,220.0,0.0001882,2]
[376382643,1753957271843,24900.0,0.00017973,2]
[376382644,1753957272763,-371.32432243,0.000189,2]
[376382645,1753957279006,-160.0,0.000189,2]
[376382646,1753957281480,-183.818179,0.000189,2]
[376382647,1753957283010,-193.10734889,0.000189,2]
[376382661,1753957416566,-182.87183376,0.00018873,2]
[376382662,1753957416597,-71.11662068,0.000189,2]
[376382663,1753957420870,-206.01154556,0.000189,2]
[376382664,1753957423228,-181.70319648,0.000189,2]
[376382665,1753957427518,-278.29680352,0.000189,2]
[376382666,1753957431120,-174.48881522,0.000189,2]
[376382667,1753957433291,-161.4319093,0.000189,2]
[376382668,1753957436876,-329.20922547,0.000189,2]
[376382669,1753957440382,-220.61225527,0.000189,2]
[376382671,1753957565898,-223.45009498,0.000189,2]
[376382673,1753957569363,-300.0,0.000189,2]
[376382677,1753957572105,-124.52489709,0.000189,2]
[376382678,1753957572135,-170.1448539,0.000189,2]
[376382679,1753957574541,-390.85159824,0.000189,2]
[376382680,1753957576134,-156.25628594,0.000189,2]
[376382681,1753957580261,-162.79077453,0.000189,2]
[376382683,1753957583261,-156.35088186,0.000189,2]
[376382684,1753957585754,171.583402,0.00013699,2]
[376382685,1753957586538,-199.73124727,0.000189,2]
[376382686,1753957590079,-191.66137699,0.000189,2]
[376382687,1753957592509,-179.98425243,0.000189,2]
[376382688,1753957594720,-15.52936486,0.000189,2]
[376382689,1753957594743,-274.710321,0.000189,2]
[376382690,1753957598322,-28.01725445,0.000189,2]
[376382691,1753957660828,-156.13074966,0.00018866,2]
[376382692,1753957660852,-156.13074966,0.00018869,2]
[376382693,1753957660874,-156.13074966,0.00018873,2]
[376382694,1753957660896,-160.01285454,0.00018876,2]
[376382695,1753957660917,-156.13074966,0.00018876,2]
[376382696,1753957660938,-160.0,0.00018957,2]
[376382697,1753957660962,-1200.0,0.00018966,2]
[376382698,1753957660982,-300.0,0.00018966,2]
[376382699,1753957661003,-300.0,0.00018967,2]
[376382700,1753957661024,-300.0,0.00018967,2]
[376382701,1753957661045,-300.0,0.00018967,2]
[376382702,1753957661067,-1200.0,0.00018967,2]
[376382703,1753957661089,-784.69,0.00018968,3]
[376382704,1753957661110,-392.35,0.00018968,3]
[376382705,1753957661132,-196.17,0.00018968,3]
[376382706,1753957661153,-588.55,0.00018968,3]
[376382707,1753957661173,-500.0,0.00018973,2]
[376382708,1753957661203,-37993.70414682,0.00018973,2]
[376382709,1753957669600,53925.12508988,0.00018,2]
[376382710,1753957673510,167.22527781,0.00018,2]
[376382712,1753957694056,194.67326809,0.000125,2]
[376382713,1753957715462,32704.32545144,0.00018,2]
[376382715,1753957717653,27617.81683438,0.00018,2]
[376382716,1753957720330,-161.4319093,0.00018876,2]
[376382717,1753957777584,-500.0,0.00018973,2]
[376382718,1753957777604,-1981.45018797,0.00018973,2]
[376382719,1753957777625,-155.0,0.00018973,2]
[376382720,1753957777647,-300.0,0.00018975,2]
[376382721,1753957777668,-11300.24916287,0.00018976,2]
[376382722,1753957777689,-310.00445487,0.00018977,2]
[376382723,1753957777714,-959.79708333,0.00018977,2]
[376382724,1753957777739,-959.79708333,0.00018977,2]
[376382725,1753957777760,-959.79708333,0.00018977,2]
[376382726,1753957777783,-573.9049443,0.00018977,2]
[376382727,1753957809177,-170.81361504,0.00018877,2]
[376382777,1753957832076,-160.0,0.00018973,2]
[376382778,1753957832086,-300.0,0.00018976,2]
[376382779,1753957832096,-300.0,0.00018976,2]
[376382780,1753957832106,-248.0,0.00018976,2]
[376382781,1753957832115,-300.0,0.00018976,2]
[376382782,1753957832125,-195.91011708,0.00018976,2]
[376382783,1753957832137,-462.228,0.00018976,2]
[376382835,1753957838264,-541.86188292,0.00018976,2]
[376382836,1753957838274,-300.0,0.00018976,2]
[376382837,1753957838284,-184.06759702,0.00018977,2]
[376382838,1753957838296,-585.85964783,0.00018977,2]
[376382839,1753957838477,-1211.52294312,0.00018977,2]
[376382840,1753957838486,-385.89213903,0.00018977,2]
[376382841,1753957838496,-959.79708333,0.00018977,2]
[376382842,1753957838505,-959.79708333,0.00018977,2]
[376382843,1753957838515,-959.79708333,0.00018977,2]
[376382844,1753957838524,-959.79708333,0.00018977,2]
[376382845,1753957838534,-959.79708333,0.00018977,2]
[376382846,1753957838543,-959.79708333,0.00018977,2]
[376382847,1753957838553,-959.79708333,0.00018977,2]
[376382848,1753957838562,-959.79708333,0.00018977,2]
[376382849,1753957838572,-959.79708333,0.00018977,2]
[376382850,1753957838581,-959.79708333,0.00018977,2]
[376382851,1753957838591,-959.79708333,0.00018977,2]
[376382852,1753957838602,-959.79708333,0.00018977,2]
[376382853,1753957838611,-959.79708333,0.00018977,2]
[376382854,1753957838621,-959.79708333,0.00018977,2]
[376382855,1753957838631,-959.79708333,0.00018977,2]
[376382856,1753957838640,-1140.28693699,0.00018977,2]
[376382857,1753957838650,-1140.28693699,0.00018977,2]
[376382858,1753957838659,-1140.28693699,0.00018977,2]
[376382859,1753957838668,-1140.28693699,0.00018977,2]
[376382860,1753957838677,-1140.28693699,0.00018977,2]
[376382861,1753957838687,-1140.28693699,0.00018977,2]
[376382862,1753957838696,-1140.28693699,0.00018977,2]
[376382863,1753957838707,-1140.28693699,0.00018977,2]
[376382864,1753957838716,-1140.28693699,0.00018977,2]
[376382865,1753957838725,-1140.28693699,0.00018977,2]
[376382866,1753957838736,-480.01620559,0.00018977,2]
[376382867,1753957838751,-500.0,0.00018977,2]
[376382868,1753957838760,-500.0,0.00018977,2]
[376382869,1753957838769,-452.24548985,0.00018977,2]
[376382870,1753957838779,-500.0,0.00018977,2]
[376382871,1753957838789,-500.0,0.00018977,2]
[376382872,1753957838798,-500.0,0.00018977,2]
[376382873,1753957838807,-500.0,0.00018977,2]
[376382874,1753957838817,-507.67190748,0.00018977,2]
[376382875,1753957838827,-500.0,0.00018977,2]
[376382876,1753957838837,-500.0,0.00018977,2]
[376382877,1753957838847,-500.0,0.00018977,2]
[376382878,1753957838856,-500.0,0.00018977,2]
[376382879,1753957838866,-500.0,0.00018977,2]
[376382880,1753957838875,-500.0,0.00018977,2]
[376382881,1753957838884,-584.14350897,0.00018977,2]
[376382882,1753957838893,-500.0,0.00018977,2]
[376382883,1753957838902,-500.0,0.00018977,2]
[376382884,1753957838912,-500.0,0.00018977,2]
[376382885,1753957838921,-500.0,0.00018977,2]
[376382886,1753957838930,-500.0,0.00018977,2]
[376382887,1753957838939,-500.0,0.00018977,2]
[376382888,1753957838949,-500.0,0.00018977,2]
[376382889,1753957838959,-220.23540611,0.00018977,2]
[376382890,1753957838969,-370000.0,0.00018978,2]
[376382891,1753957838978,-7538.3517196,0.00019073,2]
[376382892,1753957838987,-539.4923896,0.00019173,2]
[376382893,1753957838996,-500.0,0.00019173,2]
[376382894,1753957839005,-500.0,0.00019173,2]
[376382895,1753957839015,-500.0,0.00019173,2]
[376382896,1753957839024,-618.40958766,0.00019173,2]
[376382897,1753957839033,-500.0,0.00019173,2]
[376382898,1753957839042,-507.01081272,0.00019173,2]
[376382899,1753957839052,-500.0,0.00019173,2]
[376382900,1753957839061,-460.0,0.00019178,2]
[376382901,1753957839070,-460.0,0.00019178,2]
[376382902,1753957839079,-460.0,0.00019178,2]
[376382903,1753957839088,-460.0,0.00019178,2]
[376382904,1753957839099,-460.0,0.00019178,2]
[376382905,1753957839108,-460.0,0.00019178,2]
[376382906,1753957839118,-460.0,0.00019178,2]
[376382907,1753957839126,-460.0,0.00019178,2]
[376382908,1753957839136,-460.0,0.00019178,2]
[376382909,1753957839146,-460.0,0.00019178,2]
[376382910,1753957839154,-460.0,0.00019178,2]
[376382911,1753957839164,-348.95412676,0.00019178,2]
[376382912,1753957839173,-460.0,0.00019178,2]
[376382913,1753957839182,-460.0,0.00019178,2]
[376382914,1753957839191,-460.0,0.00019178,2]
[376382915,1753957839201,-460.0,0.00019178,2]
[376382916,1753957839211,-460.0,0.00019178,2]
[376382917,1753957839220,-460.0,0.00019178,2]
[376382918,1753957839233,-460.0,0.00019178,2]
[376382919,1753957839242,-460.0,0.00019178,2]
[376382920,1753957839252,-460.0,0.00019178,2]
[376382921,1753957839261,-460.0,0.00019178,2]
[376382922,1753957839271,-460.0,0.00019178,2]
[376382923,1753957839280,-460.0,0.00019178,2]
[376382924,1753957839289,-460.0,0.00019178,2]
[376382925,1753957839299,-460.0,0.00019178,2]
[376382926,1753957839308,-460.0,0.00019178,2]
[376382927,1753957839317,-460.0,0.00019178,2]
[376382928,1753957839326,-460.0,0.00019178,2]
[376382929,1753957839336,-460.0,0.00019178,2]
[376382930,1753957839347,-460.0,0.00019178,2]
[376382931,1753957839356,-460.0,0.00019178,2]
[376382932,1753957839366,-460.0,0.00019178,2]
[376382933,1753957839375,-460.0,0.00019178,2]
[376382934,1753957839385,-460.0,0.00019178,2]
[376382935,1753957839394,-460.0,0.00019178,2]
[376382936,1753957839404,-460.0,0.00019178,2]
[376382937,1753957839413,-586.95903718,0.00019178,2]
[376382938,1753957839423,-460.0,0.00019178,2]
[376382939,1753957839432,-460.0,0.00019178,2]
[376382940,1753957839442,-460.0,0.00019178,2]
[376382941,1753957839451,-460.0,0.00019178,2]
[376382942,1753957839460,-460.0,0.00019178,2]
[376382943,1753957839469,-460.0,0.00019178,2]
[376382944,1753957839478,-460.0,0.00019178,2]
[376382945,1753957839488,-363.3655,0.00019178,2]
[376382946,1753957839497,-460.0,0.00019178,2]
[376382947,1753957839506,-460.0,0.00019178,2]
[376382948,1753957839516,-460.0,0.00019178,2]
[376382949,1753957839525,-470.88758111,0.00019178,2]
[376382951,1753957839534,-460.0,0.00019178,2]
[376382952,1753957839544,-460.0,0.00019178,2]
[376382953,1753957839554,-528.88,0.00019178,2]
[376382954,1753957839563,-460.0,0.00019178,2]
[376382955,1753957839572,-460.0,0.00019178,2]
[376382956,1753957839582,-460.0,0.00019178,2]
[376382958,1753957839591,-460.0,0.00019178,2]
[376382960,1753957839601,-460.0,0.00019178,2]
[376382961,1753957839610,-460.0,0.00019178,2]
[376382962,1753957839619,-360.21536538,0.00019178,2]
[376382963,1753957839628,-460.0,0.00019178,2]
[376382964,1753957839637,-460.0,0.00019178,2]
[376382966,1753957839647,-460.0,0.00019178,2]
[376382968,1753957839657,-460.0,0.00019178,2]
[376382970,1753957839667,-460.0,0.00019178,2]
[376382971,1753957839677,-460.0,0.00019178,2]
[376382972,1753957839686,-460.0,0.00019178,2]
[376382973,1753957839695,-460.0,0.00019178,2]
[376382975,1753957839704,-460.0,0.00019178,2]
[376382977,1753957839713,-460.0,0.00019178,2]